bitfinex/quotes_SOLUSD_20220116
["timestamp","ask_amount","ask_price","bid_price","bid_amount"]
[1642313580442,0.26,147.41,147.34,10.09]
[1642313586277,0.26,147.41,147.34,9.84]
[1642313586476,0.26,147.41,147.31,1.87753904]
[1642313587477,10.44,147.41,147.31,1.87753904]
[1642313587978,1.92160233,147.39,147.3,35.91952683]
[1642313588379,0.26,147.38,147.3,35.91952683]
[1642313589078,0.26,147.38,147.3,36.16952683]
[1642313589480,0.26,147.38,147.3,35.91952683]
[1642313589682,0.26,147.38,147.3,36.16952683]
[1642313591281,0.26,147.38,147.3,35.91952683]
[1642313591479,0.26,147.38,147.3,36.16952683]
[1642313591680,0.26,147.38,147.3,35.91952683]
[1642313591879,6.26,147.39,147.3,36.16952683]
[1642313592279,6.51,147.39,147.3,36.16952683]
[1642313592479,0.51,147.39,147.3,36.16952683]
[1642313592680,6.51,147.39,147.3,36.16952683]
[1642313593180,0.51,147.39,147.3,36.16952683]
[1642313593381,0.26,147.39,147.3,36.16952683]
[1642313595486,32.61970233,147.4,147.31,68.23]
[1642313595686,32.61970233,147.4,147.31,79.57662645]
[1642313595890,32.61970233,147.4,147.32,1.24662645]
[1642313596089,32.61970233,147.4,147.33,68.23]
[1642313596485,32.61970233,147.4,147.33,68.48]
[1642313596893,0.26,147.39,147.33,68.48]
[1642313597687,0.26,147.39,147.32,102.48972645]
[1642313597886,0.26,147.39,147.32,102.73972645]
[1642313598688,0.26,147.39,147.32,108.73972645]
[1642313598892,0.26,147.39,147.32,102.73972645]
[1642313599691,30.9481,147.4,147.32,102.73972645]
[1642313601091,30.9481,147.4,147.32,34.50972645]
[1642313601292,0.26,147.39,147.32,34.50972645]
[1642313604320,0.26,147.39,147.32,33.2631]
[1642313606321,0.26,147.39,147.32,34.50972645]
[1642313610128,0.26,147.39,147.32,33.2631]
[1642313611829,0.26,147.39,147.32,33.0131]
[1642313612029,0.26,147.39,147.32,9.84]
[1642313612528,0.26,147.39,147.3,35.91952683]
[1642313612928,0.26,147.39,147.3,36.16952683]
[1642313616635,0.26,147.39,147.31,23.0463]
[1642313616837,0.26,147.39,147.31,23.2963]
[1642313619939,32.61970233,147.4,147.31,23.2963]
[1642313620140,26.61970233,147.4,147.31,33.1363]
[1642313620440,24.6981,147.4,147.31,33.1363]
[1642313620844,24.9481,147.4,147.31,33.1363]
[1642313621342,0.26,147.39,147.31,33.1363]
[1642313623453,24.9481,147.4,147.32,68.23]
[1642313623645,0.25,147.4,147.32,68.49]
[1642313623845,2.17160233,147.41,147.33,25.05459619]
[1642313624047,22.9194,147.41,147.33,25.05459619]
[1642313624245,22.9194,147.41,147.33,25.30459619]
[1642313624947,0.26,147.4,147.33,25.30459619]
[1642313625147,0.26,147.4,147.34,68.23]
[1642313625348,0.26,147.4,147.35,50.0154299]
[1642313626349,0.26,147.4,147.35,50.2654299]
[1642313626549,0.26,147.4,147.35,74.7348299]
[1642313628250,0.26,147.4,147.35,74.4848299]
[1642313628449,0.26,147.4,147.35,74.7348299]
[1642313629753,0.26,147.4,147.35,24.7194]
[1642313630852,0.26,147.4,147.35,73.332386]
[1642313632861,0.26,147.4,147.35,24.4694]
[1642313633460,22.9194,147.41,147.35,24.7194]
[1642313633862,22.9194,147.41,147.35,67.6953948]
[1642313634462,22.9194,147.41,147.35,67.4453948]
[1642313634662,22.9194,147.41,147.35,67.6953948]
[1642313634864,0.26,147.4,147.35,67.6953948]
[1642313636263,0.26,147.41,147.35,67.6953948]
[1642313637689,0.26,147.41,147.35,24.7194]
[1642313647704,0.26,147.41,147.34,9.84]
[1642313647902,0.26,147.41,147.34,0.25]
[1642313649105,0.26,147.41,147.33,45.70277186]
[1642313649302,0.26,147.41,147.33,45.95277186]
[1642313650305,2.18160233,147.41,147.33,45.95277186]
[1642313650503,2.18160233,147.41,147.34,24.883]
[1642313650703,8.43160233,147.41,147.34,24.883]
[1642313650904,8.43160233,147.41,147.34,25.133]
[1642313651206,6.51,147.41,147.34,25.133]
[1642313652304,8.43160233,147.41,147.34,25.133]
[1642313652506,2.43160233,147.41,147.34,25.133]
[1642313652705,8.43160233,147.41,147.34,25.133]
[1642313654107,8.18160233,147.41,147.34,24.883]
[1642313654309,8.18160233,147.41,147.34,34.973]
[1642313654710,6.26,147.41,147.34,34.973]
[1642313654909,0.26,147.41,147.34,34.973]
[1642313655108,6.26,147.41,147.34,34.973]
[1642313655309,6.51,147.41,147.34,34.973]
[1642313656536,0.51,147.41,147.34,34.973]
[1642313656738,6.51,147.41,147.34,34.973]
[1642313657237,0.51,147.41,147.34,34.973]
[1642313657437,0.26,147.41,147.34,34.973]
[1642313659537,0.26,147.41,147.35,47.27721446]
[1642313660136,66.52613572,147.42,147.35,47.27721446]
[1642313661837,0.26,147.41,147.35,47.27721446]
[1642313662038,0.26,147.41,147.34,34.973]
[1642313663740,0.26,147.41,147.34,25.133]
[1642313668953,0.26,147.41,147.34,24.883]
[1642313669355,0.26,147.41,147.34,25.133]
[1642313673563,0.26,147.41,147.34,93.363]
[1642313673766,0.26,147.41,147.34,103.203]
[1642313673969,0.26,147.41,147.35,0.26]
[1642313674166,0.26,147.41,147.36,9.84]
[1642313674366,0.26,147.41,147.37,35.61019802]
[1642313674565,40.64213339,147.42,147.37,35.61019802]
[1642313674769,40.64213339,147.42,147.37,35.86019802]
[1642313675195,6.0,147.42,147.37,35.86019802]
[1642313675797,6.0,147.42,147.37,35.61019802]
[1642313675997,0.25,147.42,147.36,78.07]
[1642313676199,0.25,147.42,147.37,23.155]
[1642313676600,30.1307,147.45,147.37,23.155]
[1642313676803,0.26,147.44,147.37,23.155]
[1642313677099,30.59912034,147.43,147.37,61.77123545]
[1642313677499,0.26,147.42,147.37,61.77123545]
[1642313681303,0.26,147.42,147.37,62.02123545]
[1642313681806,0.26,147.42,147.37,61.77123545]
[1642313684712,0.26,147.42,147.37,23.155]
[1642313684911,0.26,147.42,147.34,9.84]
[1642313685111,24.2815,147.42,147.34,9.84]
[1642313685510,30.5315,147.42,147.34,9.84]
[1642313685712,30.5315,147.42,147.35,39.47586069]
[1642313688113,30.5315,147.42,147.35,45.01986069]
[1642313690012,30.5315,147.42,147.35,39.47586069]
[1642313692220,30.2815,147.42,147.35,39.47586069]
[1642313692422,30.5315,147.42,147.35,39.47586069]
[1642313693618,30.5315,147.42,147.35,39.72586069]
[1642313695653,30.2815,147.42,147.35,39.72586069]
[1642313696450,30.2815,147.42,147.35,63.21616069]
[1642313697050,30.5315,147.42,147.35,63.21616069]
[1642313704064,30.2715,147.42,147.35,73.05616069]
[1642313705465,0.26,147.41,147.35,73.05616069]
[1642313709468,15.76434738,147.38,147.35,73.05616069]
[1642313709668,15.76434738,147.38,147.36,3.03219997]
[1642313709868,21.76434738,147.38,147.36,3.03219997]
[1642313710968,3.03219997,147.37,147.35,73.05616069]
[1642313711168,21.76434738,147.38,147.36,3.03219997]
[1642313711368,6.0,147.37,147.36,3.03219997]
[1642313713171,9.03219997,147.37,147.35,63.21616069]
[1642313713571,6.0,147.37,147.36,3.03219997]
[1642313714871,13.88217369,147.37,147.36,3.03219997]
[1642313715072,21.76434738,147.37,147.36,3.03219997]
[1642313716371,15.76434738,147.37,147.36,3.03219997]
[1642313716977,21.76434738,147.37,147.36,3.03219997]
[1642313719981,24.79654735,147.37,147.36,3.03219997]
[1642313720403,24.79654735,147.37,147.35,63.21616069]
[1642313720603,16.91437366,147.37,147.36,3.03219997]
[1642313720808,16.91437366,147.37,147.35,63.21616069]
[1642313721105,13.88217369,147.37,147.35,39.72586069]
[1642313721504,7.88217369,147.36,147.35,39.72586069]
[1642313721709,7.88217369,147.36,147.35,0.25]
[1642313721905,7.88217369,147.36,147.35,3.03219997]
[1642313722107,7.88217369,147.36,147.35,3.28219997]
[1642313722707,7.88217369,147.36,147.35,41.54525362]
[1642313725011,7.88217369,147.36,147.35,3.28219997]
[1642313726308,15.76434738,147.36,147.35,3.28219997]
[1642313727410,18.79654735,147.36,147.35,0.25]
[1642313727609,18.79654735,147.36,147.35,10.09]
[1642313728311,15.76434738,147.36,147.35,13.12219997]
[1642313738222,18.79654735,147.36,147.35,10.09]
[1642313742528,15.76434738,147.36,147.35,13.12219997]
[1642313746233,15.76434738,147.36,147.35,10.09]
[1642313746462,18.79654735,147.36,147.35,10.09]
[1642313747063,15.76434738,147.36,147.35,13.12219997]
[1642313749966,21.76434738,147.36,147.35,13.12219997]
[1642313750163,24.79654735,147.36,147.35,10.09]
[1642313753266,15.76434738,147.36,147.35,10.09]
[1642313753464,24.0215,147.42,147.35,23.15343328]
[1642313753664,24.0215,147.42,147.35,29.41343328]
[1642313753866,6.0,147.42,147.36,0.26]
[1642313754065,6.0,147.42,147.37,9.84]
[1642313754266,7.92160233,147.43,147.38,35.47610359]
[1642313754565,7.92160233,147.43,147.39,9.84]
[1642313754768,6.0,147.43,147.39,9.84]
[1642313754964,6.0,147.43,147.39,10.09]
[1642313755165,30.7709,147.45,147.39,10.09]
[1642313756066,29.55730316,147.46,147.39,10.09]
[1642313756268,29.55730316,147.46,147.4,0.26]
[1642313756567,29.55730316,147.46,147.41,9.84]
[1642313757067,27.63570083,147.46,147.41,10.09]
[1642313757271,27.88570083,147.46,147.41,10.09]
[1642313757469,0.26,147.45,147.41,10.09]
[1642313758570,0.25,147.46,147.41,10.09]
[1642313758768,6.25,147.46,147.41,10.09]
[1642313758968,6.25,147.46,147.41,78.32]
[1642313759468,0.25,147.46,147.41,78.32]
[1642313759670,6.0,147.46,147.41,78.32]
[1642313759870,6.0,147.46,147.42,0.26]
[1642313760072,6.0,147.46,147.42,10.1]
[1642313760270,30.8688,147.48,147.42,78.58]
[1642313760471,30.8688,147.48,147.42,10.09]
[1642313760872,31.1188,147.48,147.42,10.09]
[1642313761372,31.1188,147.48,147.42,9.84]
[1642313761777,0.26,147.47,147.42,9.84]
[1642313762481,31.1188,147.48,147.42,9.84]
[1642313762877,31.1188,147.48,147.42,10.09]
[1642313763078,31.1188,147.48,147.42,9.84]
[1642313763477,31.1188,147.48,147.38,9.84]
[1642313764078,31.1188,147.48,147.39,41.69454542]
[1642313764478,0.26,147.47,147.39,41.69454542]
[1642313764679,31.1188,147.48,147.39,41.69454542]
[1642313765883,31.1188,147.48,147.39,41.94454542]
[1642313766082,0.26,147.47,147.39,41.94454542]
[1642313767483,30.8688,147.48,147.39,51.78454542]
[1642313767690,30.8688,147.48,147.4,68.49]
[1642313767900,30.8688,147.48,147.41,9.84]
[1642313768294,30.8688,147.48,147.41,10.09]
[1642313768691,31.1188,147.48,147.41,10.09]
[1642313769491,0.26,147.47,147.36,26.69433904]
[1642313769789,0.26,147.47,147.39,0.25]
[1642313770589,0.26,147.47,147.39,10.09]
[1642313771693,31.1188,147.48,147.39,10.09]
[1642313772996,31.1188,147.48,147.39,32.8863]
[1642313773195,0.26,147.47,147.39,10.09]
[1642313773595,0.26,147.47,147.39,33.8955]
[1642313775201,0.26,147.47,147.4,68.23]
[1642313775398,0.26,147.47,147.4,68.74]
[1642313781400,0.26,147.47,147.41,78.07]
[1642313781800,0.26,147.47,147.41,78.32]
[1642313784704,0.26,147.47,147.41,10.09]
[1642313786408,0.26,147.47,147.41,78.32]
[1642313789036,0.26,147.47,147.41,10.09]
[1642313790541,0.26,147.47,147.37,1.87753904]
[1642313790939,2.18160233,147.47,147.36,1.87753904]
[1642313791337,8.43160233,147.47,147.37,37.056751]
[1642313791540,8.18160233,147.47,147.37,37.056751]
[1642313791739,7.92160233,147.47,147.37,55.092751]
[1642313791938,7.92160233,147.47,147.38,24.1578]
[1642313792238,7.92160233,147.47,147.39,9.84]
[1642313792439,6.0,147.47,147.39,17.59773367]
[1642313792641,32.79040233,147.48,147.39,79.82773367]
[1642313792840,33.04040233,147.48,147.39,79.82773367]
[1642313793540,31.1188,147.48,147.39,79.82773367]
[1642313793742,31.1188,147.48,147.4,23.9696]
[1642313793940,31.1188,147.48,147.4,34.0596]
[1642313794141,0.26,147.47,147.4,34.0596]
[1642313794542,0.26,147.47,147.4,33.8096]
[1642313796641,0.26,147.47,147.4,34.0596]
[1642313800048,0.26,147.47,147.4,41.3126]
[1642313800247,0.26,147.47,147.41,0.26]
[1642313800951,0.26,147.47,147.42,9.84]
[1642313801352,0.26,147.47,147.42,58.96820573]
[1642313801952,0.51,147.48,147.42,58.96820573]
[1642313802552,0.51,147.48,147.42,10.09]
[1642313802853,0.26,147.48,147.42,10.09]
[1642313803957,34.68624992,147.49,147.42,10.09]
[1642313804160,32.76464759,147.49,147.42,10.09]
[1642313805261,0.26,147.48,147.42,10.09]
[1642313807502,32.51464759,147.49,147.42,10.09]
[1642313807710,32.76464759,147.49,147.42,10.09]
[1642313808097,32.51464759,147.49,147.42,10.09]
[1642313809002,0.26,147.48,147.42,10.09]
[1642313812400,0.26,147.48,147.42,9.84]
[1642313816202,7.888,147.48,147.38,1.87753904]
[1642313816404,36.9179,147.48,147.38,1.87753904]
[1642313816802,36.9179,147.48,147.38,2.12753904]
[1642313817005,1.92160233,147.47,147.38,26.00563904]
[1642313817202,1.92160233,147.47,147.38,24.1281]
[1642313817401,0.26,147.46,147.38,24.1281]
[1642313817607,23.0299,147.46,147.38,24.1281]
[1642313818004,29.2799,147.46,147.38,24.1281]
[1642313818802,29.2799,147.46,147.38,23.8781]
[1642313819008,29.2799,147.46,147.38,24.1281]
[1642313819605,6.51,147.46,147.38,24.1281]
[1642313819804,6.26,147.46,147.38,24.1281]
[1642313820004,0.26,147.46,147.38,24.1281]
[1642313820404,0.26,147.47,147.38,24.1281]
[1642313823011,0.26,147.47,147.37,9.84]
[1642313823208,0.26,147.47,147.36,52.24159195]
[1642313824010,1.92160233,147.46,147.36,50.36405291]
[1642313824311,0.26,147.45,147.36,50.61405291]
[1642313824511,8.75039568,147.44,147.36,83.17925291]
[1642313824910,0.26,147.43,147.36,83.17925291]
[1642313826514,0.26,147.43,147.36,32.8152]
[1642313826713,8.532,147.43,147.36,32.8152]
[1642313826913,14.782,147.43,147.36,32.8152]
[1642313827713,14.782,147.43,147.36,9.84]
[1642313828215,6.51,147.43,147.36,9.84]
[1642313828614,31.0925,147.43,147.36,9.84]
[1642313829214,31.0925,147.43,147.35,47.66958985]
[1642313829418,31.0925,147.43,147.35,0.25]
[1642313830513,31.0925,147.43,147.34,39.85228598]
[1642313830713,30.8325,147.43,147.34,39.85228598]
[1642313830914,30.8325,147.43,147.35,24.3771]
[1642313831313,30.8325,147.43,147.35,24.6271]
[1642313831814,0.26,147.42,147.35,24.6271]
[1642313832013,0.26,147.42,147.35,24.3771]
[1642313832215,0.26,147.42,147.35,24.6271]
[1642313833616,0.26,147.42,147.35,24.3771]
[1642313835019,0.26,147.42,147.35,34.2171]
[1642313839735,0.26,147.42,147.35,34.4671]
[1642313840136,0.26,147.42,147.35,24.6271]
[1642313840761,0.26,147.42,147.35,24.3771]
[1642313842467,0.26,147.42,147.34,39.85228598]
[1642313842668,30.8325,147.43,147.34,40.10228598]
[1642313843068,30.8325,147.43,147.34,63.92898598]
[1642313844167,0.26,147.42,147.34,63.92898598]
[1642313846173,0.26,147.42,147.34,73.76898598]
[1642313850581,0.26,147.42,147.34,75.39652502]
[1642313851682,0.26,147.42,147.34,9.84]
[1642313851880,0.26,147.42,147.33,96.27753904]
[1642313852681,2.18160233,147.42,147.33,94.4]
[1642313852885,8.43160233,147.42,147.33,94.4]
[1642313853181,18.61050233,147.42,147.33,94.4]
[1642313854185,18.61050233,147.42,147.32,37.75355973]
[1642313854383,18.61050233,147.42,147.32,38.00355973]
[1642313855085,18.61050233,147.42,147.32,36.12602069]
[1642313860792,6.51,147.42,147.32,36.12602069]
[1642313861202,0.51,147.42,147.32,36.12602069]
[1642313861393,6.26,147.42,147.32,36.12602069]
[1642313861593,6.51,147.42,147.33,22.6047]
[1642313861995,0.51,147.42,147.33,22.6047]
[1642313862194,8.43160233,147.42,147.33,22.6047]
[1642313863096,6.51,147.42,147.33,22.6047]
[1642313863495,0.51,147.42,147.33,22.6047]
[1642313863700,0.26,147.42,147.33,22.6047]
[1642313867198,2.18160233,147.42,147.33,22.6047]
[1642313867400,8.43160233,147.42,147.33,22.6047]
[1642313872002,8.43160233,147.42,147.33,22.8547]
[1642313872302,8.43160233,147.42,147.33,22.6047]
[1642313872502,6.51,147.42,147.33,22.6047]
[1642313872702,6.26,147.42,147.33,22.6047]
[1642313872902,6.26,147.42,147.33,22.8547]
[1642313873503,0.26,147.42,147.33,22.8547]
[1642313873702,6.26,147.42,147.33,22.8547]
[1642313873905,6.51,147.42,147.33,22.8547]
[1642313874302,0.51,147.42,147.33,22.8547]
[1642313874503,6.26,147.42,147.33,22.8547]
[1642313874703,6.51,147.42,147.33,22.8547]
[1642313875103,0.51,147.42,147.33,22.8547]
[1642313875705,0.26,147.42,147.33,22.8547]
[1642313877106,0.26,147.42,147.33,24.73223904]
[1642313886147,32.75410233,147.43,147.33,24.73223904]
[1642313887446,0.26,147.42,147.33,24.73223904]
[1642313893956,0.26,147.42,147.34,9.84]
[1642313894154,0.26,147.42,147.35,22.6575]
[1642313894455,0.26,147.42,147.35,22.9075]
[1642313894855,8.17160233,147.43,147.35,22.9075]
[1642313895158,8.17160233,147.43,147.36,9.84]
[1642313895355,8.17160233,147.43,147.36,10.09]
[1642313895859,8.17160233,147.43,147.37,38.72681359]
[1642313896058,0.26,147.42,147.37,38.72681359]
[1642313897954,6.26,147.43,147.37,62.36861359]
[1642313898354,6.51,147.43,147.37,62.61861359]
[1642313898555,0.26,147.43,147.37,62.61861359]
[1642313898755,6.26,147.43,147.37,62.61861359]
[1642313899957,6.51,147.43,147.37,62.61861359]
[1642313900158,0.51,147.43,147.37,62.61861359]
[1642313900358,0.26,147.43,147.37,62.61861359]
[1642313901560,0.26,147.43,147.37,62.36861359]
[1642313907262,0.26,147.43,147.37,62.61861359]
[1642313908763,0.26,147.43,147.37,62.36861359]
[1642313908965,0.26,147.43,147.37,23.6418]
[1642313909970,0.26,147.43,147.37,68.952017]
[1642313910170,33.72165837,147.44,147.37,68.952017]
[1642313910372,33.72165837,147.44,147.37,69.202017]
[1642313910569,33.72165837,147.44,147.37,68.952017]
[1642313910776,33.72165837,147.44,147.37,79.042017]
[1642313911875,0.26,147.43,147.37,79.042017]
[1642313912575,0.26,147.43,147.37,78.792017]
[1642313913577,0.26,147.43,147.37,79.042017]
[1642313914379,0.26,147.43,147.37,78.792017]
[1642313914979,0.26,147.43,147.37,79.042017]
[1642313915179,0.26,147.43,147.37,78.792017]
[1642313916406,0.26,147.43,147.37,33.4818]
[1642313917510,0.26,147.43,147.37,71.57013559]
[1642313919311,0.26,147.43,147.37,33.4818]
[1642313920913,0.26,147.43,147.37,33.7318]
[1642313921413,0.26,147.43,147.37,33.4818]
[1642313925822,0.26,147.43,147.37,33.7318]
[1642313932124,0.26,147.43,147.37,33.4818]
[1642313932324,0.26,147.43,147.37,33.7318]
[1642313935827,0.26,147.43,147.37,33.4818]
[1642313938634,0.26,147.43,147.35,1.87753904]
[1642313938833,25.0802,147.43,147.35,1.87753904]
[1642313939236,31.3302,147.43,147.35,1.87753904]
[1642313939634,31.3302,147.43,147.36,42.06378546]
[1642313940034,31.3302,147.43,147.35,1.87753904]
[1642313940234,33.25180233,147.43,147.33,1.87753904]
[1642313940433,43.42990233,147.43,147.33,2.12753904]
[1642313940935,43.42990233,147.43,147.34,38.85268149]
[1642313941337,43.42990233,147.43,147.34,39.10268149]
[1642313944667,43.42990233,147.43,147.32,41.69193904]
[1642313944864,43.42990233,147.43,147.32,41.94193904]
[1642313945065,43.42990233,147.43,147.32,41.69193904]
[1642313945661,1.92160233,147.42,147.33,38.58095484]
[1642313945865,0.26,147.41,147.33,48.42095484]
[1642313947065,0.26,147.42,147.33,48.42095484]
[1642313948764,0.26,147.42,147.33,9.84]
[1642313948964,10.4389,147.42,147.33,9.84]
[1642313949369,16.6889,147.42,147.33,9.84]
[1642313949664,16.6889,147.42,147.31,1.87753904]
[1642313949867,18.61050233,147.42,147.29,11.71753904]
[1642313950064,20.31127821,147.42,147.29,11.71753904]
[1642313950264,30.15127821,147.42,147.29,11.71753904]
[1642313950665,30.15127821,147.42,147.29,11.96753904]
[1642313950866,30.15127821,147.42,147.29,57.53366105]
[1642313951066,28.45050233,147.42,147.29,57.53366105]
[1642313951869,1.92160233,147.4,147.29,55.65612201]
[1642313952069,17.9743849,147.39,147.29,55.65612201]
[1642313952269,41.6261849,147.39,147.29,55.65612201]
[1642313952472,47.8761849,147.39,147.29,55.65612201]
[1642313953469,47.8761849,147.39,147.3,23.7816]
[1642313953869,37.6951849,147.39,147.3,24.0316]
[1642313954371,29.6418,147.39,147.3,24.0316]
[1642313954570,29.3918,147.39,147.3,35.12006063]
[1642313954770,6.0,147.39,147.3,35.12006063]
[1642313955175,7.92160233,147.42,147.3,35.12006063]
[1642313955373,26.18858308,147.41,147.3,35.12006063]
[1642313955778,32.43858308,147.41,147.3,35.12006063]
[1642313956173,0.26,147.4,147.3,35.12006063]
[1642313957172,0.26,147.4,147.3,103.35006063]
[1642313957674,0.26,147.4,147.3,105.22759967]
[1642313958975,32.43858308,147.41,147.3,105.22759967]
[1642313959178,32.18858308,147.41,147.3,111.22759967]
[1642313959379,32.18858308,147.41,147.31,0.26]
[1642313959578,32.18858308,147.41,147.32,9.84]
[1642313959777,32.18858308,147.41,147.34,40.36883472]
[1642313959976,6.0,147.41,147.34,50.20883472]
[1642313960377,12.09910233,147.44,147.34,50.20883472]
[1642313960378,0.26,147.4,147.34,50.20883472]
[1642313960579,23.7297,147.43,147.35,23.9189]
[1642313960779,23.9797,147.43,147.34,50.20883472]
[1642313960980,30.98492771,147.42,147.34,40.36883472]
[1642313961379,0.26,147.41,147.34,40.61883472]
[1642313961780,0.26,147.41,147.34,40.36883472]
[1642313962380,0.26,147.41,147.34,40.61883472]
[1642313962784,0.26,147.41,147.34,50.45883472]
[1642313964686,6.26,147.42,147.35,23.3034]
[1642313964885,6.26,147.42,147.35,23.5534]
[1642313965084,0.26,147.42,147.35,23.5534]
[1642313965287,36.75467099,147.42,147.35,23.5534]
[1642313965886,37.00467099,147.42,147.35,23.5534]
[1642313966488,37.00467099,147.42,147.35,23.3034]
[1642313966887,37.00467099,147.42,147.32,1.87753904]
[1642313967489,37.00467099,147.42,147.31,25.82633904]
[1642313967689,36.74467099,147.42,147.32,49.23706572]
[1642313967890,36.74467099,147.42,147.32,49.48706572]
[1642313968289,36.74467099,147.42,147.33,23.1037]
[1642313968487,38.66627332,147.42,147.33,23.1037]
[1642313969095,0.26,147.41,147.33,23.1037]
[1642313972895,0.26,147.41,147.33,23.3537]
[1642313976429,36.74467099,147.42,147.33,23.3537]
[1642313977229,36.74467099,147.42,147.33,33.1937]
[1642313977830,0.26,147.41,147.33,32.9437]
[1642313985440,2.18160233,147.41,147.33,33.1937]
[1642313985847,8.43160233,147.41,147.33,32.9437]
[1642313986843,8.43160233,147.41,147.33,33.1937]
[1642313988944,6.51,147.41,147.33,33.1937]
[1642313989447,0.51,147.41,147.33,33.1937]
[1642313989644,0.26,147.41,147.33,33.1937]
[1642313992748,2.18160233,147.41,147.33,33.1937]
[1642313992947,8.43160233,147.41,147.33,33.1937]
[1642313994450,8.18160233,147.41,147.33,33.1937]
[1642313995249,6.26,147.41,147.33,33.1937]
[1642313995453,0.26,147.41,147.33,33.1937]
[1642313995855,2.18160233,147.41,147.33,33.1937]
[1642313996354,2.18160233,147.41,147.33,32.9437]
[1642313996355,8.43160233,147.41,147.33,32.9437]
[1642313999057,8.43160233,147.41,147.33,23.1037]
[1642314000963,1.92160233,147.4,147.33,23.1037]
[1642314001460,0.26,147.39,147.33,23.1037]
[1642314002585,0.26,147.4,147.33,23.1037]
[1642314003188,8.17160233,147.41,147.33,23.1037]
[1642314004891,0.26,147.4,147.33,23.1037]
[1642314005088,0.26,147.4,147.33,29.1037]
[1642314007794,0.26,147.4,147.33,23.1037]
[1642314008000,0.26,147.4,147.33,23.3537]
[1642314010198,0.26,147.4,147.33,23.1037]
[1642314013001,8.17160233,147.41,147.33,23.1037]
[1642314013200,8.17160233,147.41,147.33,23.3537]
[1642314013401,8.17160233,147.41,147.33,33.1937]
[1642314014000,6.25,147.41,147.33,32.9437]
[1642314014401,0.26,147.4,147.33,32.9437]
[1642314015702,0.26,147.4,147.33,33.1937]
[1642314017306,0.26,147.41,147.33,33.1937]
[1642314018604,38.66627332,147.42,147.33,33.1937]
[1642314019307,38.66627332,147.42,147.33,32.9437]
[1642314019505,38.66627332,147.42,147.33,33.1937]
[1642314019707,38.66627332,147.42,147.33,32.9437]
[1642314019904,0.26,147.41,147.33,32.9437]
[1642314020107,0.26,147.41,147.33,23.1037]
[1642314022911,0.26,147.41,147.33,23.3537]
[1642314029415,28.22608549,147.41,147.33,23.3537]
[1642314029620,34.47608549,147.41,147.33,23.3537]
[1642314032820,34.47608549,147.41,147.33,23.1037]
[1642314033519,36.39768782,147.41,147.33,23.1037]
[1642314034319,36.39768782,147.41,147.33,23.3537]
[1642314035621,36.39768782,147.41,147.33,23.1037]
[1642314035821,36.39768782,147.41,147.33,23.3537]
[1642314039926,36.39768782,147.41,147.33,23.1037]
[1642314041426,1.92160233,147.4,147.33,23.1037]
[1642314041927,0.26,147.39,147.33,23.1037]
[1642314043858,0.26,147.39,147.33,23.3537]
[1642314044660,0.26,147.4,147.33,23.3537]
[1642314050776,0.26,147.4,147.33,0.25]
[1642314050977,0.26,147.4,147.32,49.48706572]
[1642314051177,24.8713,147.4,147.32,49.48706572]
[1642314051379,30.8713,147.4,147.32,49.48706572]
[1642314051577,31.1213,147.4,147.32,49.48706572]
[1642314052378,31.1213,147.4,147.33,24.308]
[1642314052782,31.1213,147.4,147.33,24.558]
[1642314053381,31.1213,147.4,147.33,24.308]
[1642314055908,31.1213,147.4,147.33,24.558]